[Event "*** Titled Tuesday Blitz"]
[Site "Chess.com"]
[Date "2018.12.04"]
[Round "1"]
[White "Zarikovs1999"]
[Black "rasmussvane"]
[Result "0-1"]
[WhiteElo "2349"]
[BlackElo "2663"]
[TimeControl "180+2"]
[EndTime "13:02:55 PST"]
[Termination "rasmussvane won by resignation"]

1. e4 {[%clk 0:03:00.5]} 1... c6 {[%clk 0:03:01.1]} 2. d4 {[%clk 0:02:59]} 2...
d5 {[%clk 0:03:02.6]} 3. Nc3 {[%clk 0:03:00.3]} 3... dxe4 {[%clk 0:03:03.8]} 4.
Nxe4 {[%clk 0:03:02.2]} 4... Nf6 {[%clk 0:03:05.4]} 5. Nxf6+ {[%clk 0:03:01.3]}
5... exf6 {[%clk 0:03:07.3]} 6. Nf3 {[%clk 0:03:02.7]} 6... Bd6 {[%clk
0:03:08.7]} 7. Be2 {[%clk 0:03:02.6]} 7... O-O {[%clk 0:03:10.3]} 8. O-O {[%clk
0:03:02.3]} 8... Re8 {[%clk 0:03:11.9]} 9. c4 {[%clk 0:03:01.5]} 9... Nd7 {[%clk
0:03:13.4]} 10. h3 {[%clk 0:03:02.8]} 10... Nf8 {[%clk 0:03:14.4]} 11. Be3
{[%clk 0:03:00.9]} 11... Ng6 {[%clk 0:03:15.6]} 12. Qc2 {[%clk 0:02:58.3]} 12...
Be6 {[%clk 0:03:16.2]} 13. Rad1 {[%clk 0:02:57.9]} 13... Qc8 {[%clk 0:03:17]}
14. Nd2 {[%clk 0:02:13]} 14... Bxh3 {[%clk 0:03:11.7]} 15. Ne4 {[%clk
0:02:06.3]} 15... Bxg2 {[%clk 0:02:46.7]} 16. Kxg2 {[%clk 0:01:51.8]} 16... Nh4+
{[%clk 0:02:47]} 17. Kg1 {[%clk 0:01:43.8]} 17... Qh3 {[%clk 0:02:48.5]} 0-1

[Event "*** Titled Tuesday Blitz"]
[Site "Chess.com"]
[Date "2018.12.04"]
[Round "1"]
[White "MatyChess1"]
[Black "mjray79"]
[Result "1-0"]
[WhiteElo "2543"]
[BlackElo "2158"]
[TimeControl "180+2"]
[EndTime "13:03:16 PST"]
[Termination "MatyChess1 won by checkmate"]

1. e4 {[%clk 0:02:57.3]} 1... c5 {[%clk 0:03:00.3]} 2. Nf3 {[%clk 0:02:57.5]}
2... e6 {[%clk 0:03:00.1]} 3. g3 {[%clk 0:02:57.9]} 3... Nc6 {[%clk 0:02:53]} 4.
Bg2 {[%clk 0:02:55.3]} 4... g6 {[%clk 0:02:53.2]} 5. d4 {[%clk 0:02:55.4]} 5...
cxd4 {[%clk 0:02:50]} 6. Nxd4 {[%clk 0:02:57.3]} 6... Bg7 {[%clk 0:02:49.4]} 7.
Nb5 {[%clk 0:02:56.3]} 7... Qa5+ {[%clk 0:02:29.9]} 8. N1c3 {[%clk 0:02:53.7]}
8... Bxc3+ {[%clk 0:02:29.6]} 9. Nxc3 {[%clk 0:02:55.6]} 9... Nf6 {[%clk
0:02:27.5]} 10. Bh6 {[%clk 0:02:53.7]} 10... b6 {[%clk 0:02:21.5]} 11. Bg7
{[%clk 0:02:51.7]} 11... Rg8 {[%clk 0:02:01.6]} 12. Bxf6 {[%clk 0:02:49.9]}
12... Ba6 {[%clk 0:02:02.3]} 13. Qd6 {[%clk 0:02:43]} 13... e5 {[%clk
0:01:46.5]} 14. O-O-O {[%clk 0:02:33.9]} 14... Nd4 {[%clk 0:01:40.7]} 15. Qe7#
{[%clk 0:02:10.7]} 1-0

[Event "*** Titled Tuesday Blitz"]
[Site "Chess.com"]
[Date "2018.12.04"]
[Round "1"]
[White "DeviatkinAndrey"]
[Black "Rashad_Zeynalli"]
[Result "1-0"]
[WhiteElo "2656"]
[BlackElo "2343"]
[TimeControl "180+2"]
[EndTime "13:04:13 PST"]
[Termination "DeviatkinAndrey won by resignation"]

1. d4 {[%clk 0:02:57.7]} 1... Nf6 {[%clk 0:02:59.4]} 2. Nf3 {[%clk 0:02:58]}
2... g6 {[%clk 0:02:54.7]} 3. Bg5 {[%clk 0:02:57.4]} 3... Bg7 {[%clk 0:02:55.3]}
4. e3 {[%clk 0:02:57.1]} 4... O-O {[%clk 0:02:53.5]} 5. h3 {[%clk 0:02:56.8]}
5... d6 {[%clk 0:02:53.8]} 6. c3 {[%clk 0:02:56.6]} 6... c5 {[%clk 0:02:52.9]}
7. Nbd2 {[%clk 0:02:56.9]} 7... b6 {[%clk 0:02:51.9]} 8. Bd3 {[%clk 0:02:56.2]}
8... Bb7 {[%clk 0:02:49.1]} 9. Qe2 {[%clk 0:02:55]} 9... Nc6 {[%clk 0:02:31.1]}
10. O-O {[%clk 0:02:50.8]} 10... e5 {[%clk 0:02:27.9]} 11. dxc5 {[%clk
0:02:42.3]} 11... bxc5 {[%clk 0:02:22.1]} 12. Ne4 {[%clk 0:02:37.3]} 12... Qe7
{[%clk 0:02:19.2]} 13. Ba6 {[%clk 0:02:26.2]} 13... Bxa6 {[%clk 0:01:59.9]} 14.
Qxa6 {[%clk 0:02:26.2]} 14... Rac8 {[%clk 0:01:54.8]} 15. Rfd1 {[%clk
0:02:23.7]} 15... Rfd8 {[%clk 0:01:53.8]} 16. Bxf6 {[%clk 0:01:59]} 16... Bxf6
{[%clk 0:01:49.6]} 17. Rxd6 {[%clk 0:01:59.9]} 17... Rxd6 {[%clk 0:01:30.8]} 18.
Qxc8+ {[%clk 0:01:56.3]} 18... Qd8 {[%clk 0:01:29.3]} 19. Nxd6 {[%clk
0:01:56.6]} 1-0

[Event "*** Titled Tuesday Blitz"]
[Site "Chess.com"]
[Date "2018.12.04"]
[Round "1"]
[White "enriquetejedor"]
[Black "Makalexa"]
[Result "1-0"]
[WhiteElo "2528"]
[BlackElo "2138"]
[TimeControl "180+2"]
[EndTime "13:04:22 PST"]
[Termination "enriquetejedor won by checkmate"]

1. e3 {[%clk 0:02:56.9]} 1... g6 {[%clk 0:02:59.4]} 2. d4 {[%clk 0:02:56.5]}
2... Bg7 {[%clk 0:03:00.7]} 3. Nf3 {[%clk 0:02:58.4]} 3... d6 {[%clk 0:03:01.1]}
4. Be2 {[%clk 0:03:00]} 4... Nf6 {[%clk 0:03:02]} 5. O-O {[%clk 0:03:01.9]} 5...
O-O {[%clk 0:03:02.6]} 6. c4 {[%clk 0:03:03.8]} 6... Nbd7 {[%clk 0:03:01.8]} 7.
b3 {[%clk 0:03:05.7]} 7... e5 {[%clk 0:03:02.3]} 8. Bb2 {[%clk 0:03:07.6]} 8...
e4 {[%clk 0:03:02.3]} 9. Nfd2 {[%clk 0:03:08.7]} 9... Re8 {[%clk 0:03:03]} 10.
Nc3 {[%clk 0:03:09.9]} 10... c6 {[%clk 0:03:03.5]} 11. Rc1 {[%clk 0:03:10.7]}
11... a6 {[%clk 0:03:03]} 12. Ba3 {[%clk 0:03:11.4]} 12... d5 {[%clk 0:03:01.3]}
13. cxd5 {[%clk 0:03:13.3]} 13... cxd5 {[%clk 0:03:02.2]} 14. Na4 {[%clk
0:03:14.7]} 14... b5 {[%clk 0:03:00]} 15. Nc5 {[%clk 0:03:15.8]} 15... Nxc5
{[%clk 0:03:01.3]} 16. Bxc5 {[%clk 0:03:16.6]} 16... h5 {[%clk 0:02:58.5]} 17.
Qc2 {[%clk 0:03:17.5]} 17... Ng4 {[%clk 0:02:55.3]} 18. Ba3 {[%clk 0:03:14.5]}
18... Qh4 {[%clk 0:02:55.1]} 19. h3 {[%clk 0:03:14.3]} 19... Nxe3 {[%clk
0:02:40.2]} 20. fxe3 {[%clk 0:03:16.2]} 20... Bxh3 {[%clk 0:02:39.5]} 21. Qc7
{[%clk 0:03:17]} 21... Bh6 {[%clk 0:02:32.9]} 22. Qxf7+ {[%clk 0:03:17.3]} 22...
Kh8 {[%clk 0:02:27.7]} 23. Qf6+ {[%clk 0:03:18.4]} 23... Qxf6 {[%clk 0:02:27.6]}
24. Rxf6 {[%clk 0:03:20.3]} 24... Bxe3+ {[%clk 0:02:28.5]} 25. Kh2 {[%clk
0:03:21.7]} 25... Bxd2 {[%clk 0:02:28.6]} 26. Rc2 {[%clk 0:03:20.8]} 26... Bg5
{[%clk 0:02:28.5]} 27. Rxg6 {[%clk 0:03:21.6]} 27... Bf4+ {[%clk 0:02:26.3]} 28.
g3 {[%clk 0:03:22.9]} 28... Kh7 {[%clk 0:01:37.5]} 29. Rb6 {[%clk 0:03:19.8]}
29... Rg8 {[%clk 0:01:21.8]} 30. gxf4 {[%clk 0:03:19.9]} 30... Rg2+ {[%clk
0:01:22.1]} 31. Kxh3 {[%clk 0:03:21]} 31... Rag8 {[%clk 0:01:23.5]} 32. Rc7+
{[%clk 0:03:14.3]} 32... Kh8 {[%clk 0:01:02.1]} 33. Rh6# {[%clk 0:03:07.1]} 1-0

[Event "*** Titled Tuesday Blitz"]
[Site "Chess.com"]
[Date "2018.12.04"]
[Round "1"]
[White "VladimirBelous"]
[Black "Godzillator"]
[Result "1-0"]
[WhiteElo "2734"]
[BlackElo "2389"]
[TimeControl "180+2"]
[EndTime "13:04:32 PST"]
[Termination "VladimirBelous won by resignation"]

1. c4 {[%clk 0:03:01.9]} 1... c6 {[%clk 0:02:59.8]} 2. Nf3 {[%clk 0:03:03]} 2...
d5 {[%clk 0:03:00.9]} 3. e3 {[%clk 0:03:04]} 3... Nf6 {[%clk 0:03:00.7]} 4. d4
{[%clk 0:03:04.3]} 4... Bf5 {[%clk 0:02:59.7]} 5. cxd5 {[%clk 0:03:04.2]} 5...
cxd5 {[%clk 0:03:00.6]} 6. Nc3 {[%clk 0:03:05.7]} 6... a6 {[%clk 0:03:00.7]} 7.
Ne5 {[%clk 0:03:06.7]} 7... Nbd7 {[%clk 0:03:00.7]} 8. g4 {[%clk 0:02:59.8]}
8... Be6 {[%clk 0:02:59.4]} 9. h3 {[%clk 0:02:46.1]} 9... Nxe5 {[%clk
0:02:59.8]} 10. dxe5 {[%clk 0:02:48]} 10... Ne4 {[%clk 0:02:59.1]} 11. Nxe4
{[%clk 0:02:48.6]} 11... dxe4 {[%clk 0:03:00.3]} 12. Qxd8+ {[%clk 0:02:48.9]}
12... Rxd8 {[%clk 0:03:00.5]} 13. Bd2 {[%clk 0:02:42.7]} 13... h5 {[%clk
0:02:53.4]} 14. g5 {[%clk 0:02:43.4]} 14... g6 {[%clk 0:02:54.1]} 15. Bg2 {[%clk
0:02:39.9]} 15... Bf5 {[%clk 0:02:54.7]} 16. Bc3 {[%clk 0:02:37.2]} 16... Bg7
{[%clk 0:02:55.5]} 17. Ke2 {[%clk 0:02:35]} 17... O-O {[%clk 0:02:55.9]} 18.
Rhd1 {[%clk 0:02:36.5]} 18... Rd3 {[%clk 0:02:43.9]} 19. Rxd3 {[%clk 0:02:34.5]}
19... exd3+ {[%clk 0:02:44.4]} 20. Kd2 {[%clk 0:02:35.8]} 20... Rd8 {[%clk
0:02:39.8]} 21. Bxb7 {[%clk 0:02:33.4]} 21... Bxh3 {[%clk 0:02:35.9]} 22. Bxa6
{[%clk 0:02:34.5]} 22... Bf5 {[%clk 0:02:36.6]} 23. a4 {[%clk 0:02:31.5]} 23...
h4 {[%clk 0:02:37.6]} 24. a5 {[%clk 0:02:32.4]} 24... h3 {[%clk 0:02:38.7]} 25.
Bb7 {[%clk 0:02:33.6]} 25... Bc8 {[%clk 0:02:35.7]} 26. a6 {[%clk 0:02:34.3]}
26... h2 {[%clk 0:02:29.5]} 27. Bxc8 {[%clk 0:02:28.7]} 27... Rxc8 {[%clk
0:02:30.2]} 28. a7 {[%clk 0:02:30.1]} 28... Ra8 {[%clk 0:02:15.2]} 29. Bd4
{[%clk 0:02:29.6]} 29... f6 {[%clk 0:02:12.5]} 30. exf6 {[%clk 0:02:24.8]} 30...
exf6 {[%clk 0:02:13.2]} 31. gxf6 {[%clk 0:02:25.5]} 31... Bf8 {[%clk 0:02:14]}
32. Kxd3 {[%clk 0:02:22]} 32... Kf7 {[%clk 0:02:14.1]} 33. Rh1 {[%clk 0:02:20]}
33... Bd6 {[%clk 0:02:15]} 34. f4 {[%clk 0:02:21.2]} 34... g5 {[%clk 0:02:06.4]}
35. Rxh2 {[%clk 0:02:19.6]} 35... gxf4 {[%clk 0:02:07.6]} 36. exf4 {[%clk
0:02:21.2]} 36... Bxf4 {[%clk 0:02:07.9]} 37. Rh7+ {[%clk 0:02:22.5]} 37... Kg6
{[%clk 0:02:08.1]} 38. Rg7+ {[%clk 0:02:17.4]} 38... Kf5 {[%clk 0:02:06.5]} 39.
f7 {[%clk 0:02:18.4]} 39... Bd6 {[%clk 0:02:07.1]} 40. Rg8 {[%clk 0:02:18.2]}
1-0

[Event "*** Titled Tuesday Blitz"]
[Site "Chess.com"]
[Date "2018.12.04"]
[Round "1"]
[White "Fighterman91"]
[Black "2Tilted"]
[Result "1-0"]
[WhiteElo "2616"]
[BlackElo "2281"]
[TimeControl "180+2"]
[EndTime "13:04:53 PST"]
[Termination "Fighterman91 won by resignation"]

1. d4 {[%clk 0:03:01.1]} 1... d5 {[%clk 0:02:59.2]} 2. Bf4 {[%clk 0:03:01.2]}
2... Nf6 {[%clk 0:02:59.3]} 3. e3 {[%clk 0:03:01.2]} 3... Bf5 {[%clk 0:03:00.2]}
4. c4 {[%clk 0:03:01.5]} 4... e6 {[%clk 0:03:00.9]} 5. Nc3 {[%clk 0:02:59.5]}
5... c6 {[%clk 0:03:01.4]} 6. Qb3 {[%clk 0:03:00.1]} 6... Qc8 {[%clk 0:02:57.7]}
7. h3 {[%clk 0:02:52.4]} 7... Nbd7 {[%clk 0:02:55]} 8. Rc1 {[%clk 0:02:53.1]}
8... Nb6 {[%clk 0:02:27.9]} 9. Nf3 {[%clk 0:02:38.3]} 9... Nxc4 {[%clk
0:02:07.5]} 10. Bxc4 {[%clk 0:02:40.2]} 10... dxc4 {[%clk 0:02:08]} 11. Qxc4
{[%clk 0:02:41.7]} 11... Be7 {[%clk 0:02:08.4]} 12. O-O {[%clk 0:02:42]} 12...
h6 {[%clk 0:02:08.1]} 13. b4 {[%clk 0:02:38]} 13... Ne4 {[%clk 0:02:03.5]} 14.
b5 {[%clk 0:02:21.1]} 14... cxb5 {[%clk 0:01:32]} 15. Qxb5+ {[%clk 0:02:15.1]}
15... Qd7 {[%clk 0:01:31.4]} 16. Qxd7+ {[%clk 0:02:15.2]} 16... Kxd7 {[%clk
0:01:32.2]} 17. Ne5+ {[%clk 0:02:02.9]} 17... Ke8 {[%clk 0:01:31.2]} 18. Nb5
{[%clk 0:02:01.6]} 18... f6 {[%clk 0:01:08.1]} 19. Nc7+ {[%clk 0:01:59.6]} 19...
Kf8 {[%clk 0:00:56.9]} 20. Nxa8 {[%clk 0:01:58]} 20... fxe5 {[%clk 0:00:57.1]}
21. Rc8+ {[%clk 0:01:50]} 1-0

[Event "*** Titled Tuesday Blitz"]
[Site "Chess.com"]
[Date "2018.12.04"]
[Round "1"]
[White "lolo9292"]
[Black "Jbd735"]
[Result "0-1"]
[WhiteElo "2119"]
[BlackElo "2507"]
[TimeControl "180+2"]
[EndTime "13:04:55 PST"]
[Termination "Jbd735 won by resignation"]

1. e4 {[%clk 0:02:55.5]} 1... e5 {[%clk 0:03:00.8]} 2. Nf3 {[%clk 0:02:46.4]}
2... Nc6 {[%clk 0:03:01.7]} 3. Bb5 {[%clk 0:02:39.4]} 3... a6 {[%clk 0:03:02.3]}
4. Ba4 {[%clk 0:02:32.3]} 4... Nf6 {[%clk 0:03:02.1]} 5. O-O {[%clk 0:02:31.4]}
5... Be7 {[%clk 0:03:02.7]} 6. Re1 {[%clk 0:02:25.5]} 6... b5 {[%clk 0:03:03.4]}
7. Bb3 {[%clk 0:02:25.1]} 7... d6 {[%clk 0:03:04.4]} 8. d3 {[%clk 0:02:26.2]}
8... Na5 {[%clk 0:03:00.9]} 9. Nc3 {[%clk 0:02:28.1]} 9... Nxb3 {[%clk
0:02:57.1]} 10. axb3 {[%clk 0:02:15.9]} 10... Bb7 {[%clk 0:02:57.4]} 11. d4
{[%clk 0:02:12.8]} 11... b4 {[%clk 0:02:35.1]} 12. Nd5 {[%clk 0:02:13.5]} 12...
Nxd5 {[%clk 0:02:09.7]} 13. exd5 {[%clk 0:02:15.4]} 13... O-O {[%clk 0:02:10]}
14. dxe5 {[%clk 0:02:15.4]} 14... dxe5 {[%clk 0:02:10.5]} 15. Nxe5 {[%clk
0:02:17.3]} 15... Bxd5 {[%clk 0:02:09.3]} 16. Nd3 {[%clk 0:02:15.9]} 16... a5
{[%clk 0:02:00.5]} 17. Be3 {[%clk 0:02:12.6]} 17... Bf6 {[%clk 0:02:00.1]} 18.
f3 {[%clk 0:02:12.9]} 18... Re8 {[%clk 0:02:00.2]} 19. Bf2 {[%clk 0:02:14]}
19... Bc6 {[%clk 0:01:58.7]} 20. Qd2 {[%clk 0:02:13.7]} 20... Bxb2 {[%clk
0:01:50.5]} 21. Rxe8+ {[%clk 0:02:12]} 21... Bxe8 {[%clk 0:01:52]} 22. Rd1
{[%clk 0:02:09.6]} 22... Bc3 {[%clk 0:01:51.2]} 23. Qe3 {[%clk 0:02:10.8]} 23...
Qf6 {[%clk 0:01:25.1]} 24. Nc5 {[%clk 0:02:08.8]} 24... Bc6 {[%clk 0:01:24.2]}
25. Qd3 {[%clk 0:02:05.7]} 25... h6 {[%clk 0:01:21.4]} 26. Ne4 {[%clk
0:02:04.2]} 26... Bxe4 {[%clk 0:01:14.3]} 27. Qxe4 {[%clk 0:02:06.1]} 27... Rd8
{[%clk 0:01:15.1]} 28. Rxd8+ {[%clk 0:02:05.7]} 28... Qxd8 {[%clk 0:01:17]} 29.
Qd3 {[%clk 0:02:06.6]} 29... Qxd3 {[%clk 0:01:17.3]} 30. cxd3 {[%clk 0:02:08.5]}
30... a4 {[%clk 0:01:17.9]} 31. bxa4 {[%clk 0:02:08.5]} 31... b3 {[%clk
0:01:19.1]} 0-1

[Event "*** Titled Tuesday Blitz"]
[Site "Chess.com"]
[Date "2018.12.04"]
[Round "1"]
[White "MateusViageiro"]
[Black "mazetofonias"]
[Result "0-1"]
[WhiteElo "2203"]
[BlackElo "2566"]
[TimeControl "180+2"]
[EndTime "13:05:18 PST"]
[Termination "mazetofonias won by resignation"]

1. d4 {[%clk 0:03:01]} 1... Nf6 {[%clk 0:03:00]} 2. c4 {[%clk 0:03:01.4]} 2...
e6 {[%clk 0:03:01.1]} 3. Nc3 {[%clk 0:03:02.2]} 3... Bb4 {[%clk 0:03:02.6]} 4.
Qc2 {[%clk 0:03:03]} 4... O-O {[%clk 0:03:03.7]} 5. Nf3 {[%clk 0:03:02.9]} 5...
c5 {[%clk 0:03:04.7]} 6. e3 {[%clk 0:02:59.1]} 6... d5 {[%clk 0:03:05.4]} 7.
cxd5 {[%clk 0:02:53.6]} 7... exd5 {[%clk 0:03:07.3]} 8. a3 {[%clk 0:02:53.8]}
8... Bxc3+ {[%clk 0:03:06.6]} 9. bxc3 {[%clk 0:02:54.8]} 9... cxd4 {[%clk
0:03:06.9]} 10. cxd4 {[%clk 0:02:52.7]} 10... Ne4 {[%clk 0:03:06.4]} 11. Bd3
{[%clk 0:02:52]} 11... f5 {[%clk 0:03:07.4]} 12. O-O {[%clk 0:02:51.6]} 12...
Nc6 {[%clk 0:03:07.8]} 13. Bb2 {[%clk 0:02:47]} 13... Be6 {[%clk 0:03:00.4]} 14.
Rad1 {[%clk 0:02:33.7]} 14... Qe7 {[%clk 0:03:00.8]} 15. Ne5 {[%clk 0:02:25.5]}
15... Nxe5 {[%clk 0:02:58]} 16. dxe5 {[%clk 0:02:26.6]} 16... Rac8 {[%clk
0:02:59.2]} 17. Qa4 {[%clk 0:02:17.6]} 17... b6 {[%clk 0:02:59.7]} 18. Qd4
{[%clk 0:01:31.3]} 18... Rcd8 {[%clk 0:02:55.1]} 19. f3 {[%clk 0:01:30.6]} 19...
Nc5 {[%clk 0:02:55.5]} 20. Bb1 {[%clk 0:01:28.9]} 20... Kh8 {[%clk 0:02:52.4]}
21. Qd2 {[%clk 0:01:25.4]} 21... Qg5 {[%clk 0:02:49.7]} 22. Qe2 {[%clk
0:01:20.7]} 22... Rc8 {[%clk 0:02:50.3]} 23. Rd4 {[%clk 0:01:06.2]} 23... Rfd8
{[%clk 0:02:50.6]} 24. Ba2 {[%clk 0:01:01]} 24... Rd7 {[%clk 0:02:43.4]} 25.
Rfd1 {[%clk 0:00:59.7]} 25... Rcd8 {[%clk 0:02:43.3]} 26. Bc1 {[%clk 0:00:55.5]}
26... Qe7 {[%clk 0:02:41.9]} 27. Bd2 {[%clk 0:00:48.1]} 27... a5 {[%clk
0:02:37]} 28. Rb1 {[%clk 0:00:45.2]} 28... Rb7 {[%clk 0:02:35.4]} 29. Qd3 {[%clk
0:00:46]} 29... Nxd3 {[%clk 0:02:35.7]} 30. Rxd3 {[%clk 0:00:41.4]} 30... d4
{[%clk 0:02:36.7]} 0-1

[Event "*** Titled Tuesday Blitz"]
[Site "Chess.com"]
[Date "2018.12.04"]
[Round "1"]
[White "joppie2"]
[Black "jmduque"]
[Result "1-0"]
[WhiteElo "2725"]
[BlackElo "2387"]
[TimeControl "180+2"]
[EndTime "13:05:20 PST"]
[Termination "joppie2 won by resignation"]

1. e4 {[%clk 0:03:01.9]} 1... e5 {[%clk 0:03:00.8]} 2. Nf3 {[%clk 0:03:02.6]}
2... Nc6 {[%clk 0:03:02.1]} 3. Bc4 {[%clk 0:03:04.1]} 3... Nf6 {[%clk
0:03:02.8]} 4. d3 {[%clk 0:03:04.9]} 4... h6 {[%clk 0:03:04.2]} 5. Nc3 {[%clk
0:03:02.7]} 5... d6 {[%clk 0:03:04]} 6. a3 {[%clk 0:03:03.8]} 6... g6 {[%clk
0:03:03]} 7. h3 {[%clk 0:03:02.6]} 7... Bg7 {[%clk 0:03:04.1]} 8. O-O {[%clk
0:03:02.6]} 8... O-O {[%clk 0:03:04.9]} 9. Ba2 {[%clk 0:03:04.1]} 9... Qe7
{[%clk 0:03:06.1]} 10. Be3 {[%clk 0:03:04.3]} 10... Be6 {[%clk 0:03:07.2]} 11.
Nd5 {[%clk 0:03:04.8]} 11... Bxd5 {[%clk 0:03:06.5]} 12. exd5 {[%clk 0:03:06.7]}
12... Nb8 {[%clk 0:03:07.1]} 13. Nd2 {[%clk 0:03:07.6]} 13... Nh5 {[%clk
0:03:00.9]} 14. Re1 {[%clk 0:02:42.7]} 14... Nd7 {[%clk 0:02:50.3]} 15. Qg4
{[%clk 0:02:39]} 15... Kh7 {[%clk 0:02:40.1]} 16. Qb4 {[%clk 0:02:38.2]} 16...
b6 {[%clk 0:02:18.2]} 17. g4 {[%clk 0:02:38.1]} 17... Nhf6 {[%clk 0:02:14.8]}
18. f4 {[%clk 0:02:39.3]} 18... h5 {[%clk 0:02:09]} 19. g5 {[%clk 0:02:37.4]}
19... Ng8 {[%clk 0:02:10.1]} 20. Nf3 {[%clk 0:02:32.3]} 20... exf4 {[%clk
0:01:53.9]} 21. Bxf4 {[%clk 0:02:29.8]} 21... Qd8 {[%clk 0:01:54.4]} 22. Nd4
{[%clk 0:02:28.2]} 22... a5 {[%clk 0:01:44.4]} 23. Qc4 {[%clk 0:02:27.3]} 23...
Ne5 {[%clk 0:01:43.9]} 24. Qb5 {[%clk 0:02:22.8]} 24... Re8 {[%clk 0:01:39.7]}
25. Kg2 {[%clk 0:02:18.4]} 25... Ne7 {[%clk 0:01:38.9]} 26. Re3 {[%clk 0:02:13]}
26... Qd7 {[%clk 0:01:32.2]} 27. Rae1 {[%clk 0:02:06.2]} 27... Qxb5 {[%clk
0:01:31.3]} 28. Nxb5 {[%clk 0:02:08.1]} 28... Rec8 {[%clk 0:01:24.3]} 29. d4
{[%clk 0:02:08.2]} 29... Nf5 {[%clk 0:01:21.8]} 30. dxe5 {[%clk 0:02:09.4]}
30... Nxe3+ {[%clk 0:01:22.9]} 31. Rxe3 {[%clk 0:02:11.3]} 31... dxe5 {[%clk
0:01:21.8]} 32. Bxe5 {[%clk 0:02:12.8]} 32... Re8 {[%clk 0:01:22.9]} 33. Nxc7
{[%clk 0:02:14.1]} 1-0

[Event "*** Titled Tuesday Blitz"]
[Site "Chess.com"]
[Date "2018.12.04"]
[Round "1"]
[White "Phelathegreat"]
[Black "maciek_92"]
[Result "1-0"]
[WhiteElo "2353"]
[BlackElo "2631"]
[TimeControl "180+2"]
[EndTime "13:05:27 PST"]
[Termination "Phelathegreat won by resignation"]

1. d4 {[%clk 0:03:01.5]} 1... Nf6 {[%clk 0:03:00.1]} 2. c4 {[%clk 0:03:02.8]}
2... e6 {[%clk 0:03:01.5]} 3. Nf3 {[%clk 0:03:04.1]} 3... b6 {[%clk 0:03:02.9]}
4. g3 {[%clk 0:03:05.5]} 4... Bb7 {[%clk 0:03:04.3]} 5. Bg2 {[%clk 0:03:06.6]}
5... Be7 {[%clk 0:03:05.9]} 6. O-O {[%clk 0:03:07.5]} 6... O-O {[%clk
0:03:07.4]} 7. Nc3 {[%clk 0:03:08.9]} 7... Ne4 {[%clk 0:03:07.7]} 8. Qc2 {[%clk
0:03:10.2]} 8... d5 {[%clk 0:03:08.1]} 9. cxd5 {[%clk 0:03:10.9]} 9... exd5
{[%clk 0:03:08.6]} 10. Ne5 {[%clk 0:03:11.7]} 10... Nxc3 {[%clk 0:03:01.6]} 11.
bxc3 {[%clk 0:03:08.5]} 11... Nd7 {[%clk 0:03:02.8]} 12. Rd1 {[%clk 0:03:01.4]}
12... Bd6 {[%clk 0:02:58.8]} 13. f4 {[%clk 0:02:59]} 13... Nf6 {[%clk 0:02:55]}
14. c4 {[%clk 0:02:54.5]} 14... c6 {[%clk 0:02:56.4]} 15. a4 {[%clk 0:02:51]}
15... a5 {[%clk 0:02:41.1]} 16. Rb1 {[%clk 0:02:50.1]} 16... Bb4 {[%clk
0:02:36.4]} 17. Bd2 {[%clk 0:02:48.7]} 17... Qe7 {[%clk 0:02:34.3]} 18. Bxb4
{[%clk 0:02:44.9]} 18... axb4 {[%clk 0:02:36.2]} 19. c5 {[%clk 0:02:46.7]} 19...
bxc5 {[%clk 0:02:36.7]} 20. dxc5 {[%clk 0:02:42.3]} 20... Ra5 {[%clk 0:02:38]}
21. Rdc1 {[%clk 0:02:40.7]} 21... Rfa8 {[%clk 0:02:37.2]} 22. Rxb4 {[%clk
0:02:41.6]} 22... h6 {[%clk 0:02:32.8]} 23. Bf3 {[%clk 0:02:41]} 23... R8a6
{[%clk 0:02:25]} 24. Rcb1 {[%clk 0:02:40.6]} 24... Rxc5 {[%clk 0:02:17.3]} 25.
Qf5 {[%clk 0:02:27]} 25... Ra7 {[%clk 0:02:16.2]} 26. Rxb7 {[%clk 0:02:24.7]}
26... Rxb7 {[%clk 0:02:15.7]} 27. Qc8+ {[%clk 0:02:25.6]} 27... Kh7 {[%clk
0:02:16.4]} 28. Qxb7 {[%clk 0:02:26.7]} 28... Rc1+ {[%clk 0:02:07.7]} 29. Kg2
{[%clk 0:02:25.6]} 29... Qc5 {[%clk 0:02:08.7]} 30. Rxc1 {[%clk 0:02:20.8]}
30... Qxc1 {[%clk 0:02:10.6]} 31. a5 {[%clk 0:02:21.5]} 31... Ne4 {[%clk
0:02:08.3]} 32. Bxe4+ {[%clk 0:02:20.5]} 32... dxe4 {[%clk 0:02:10.2]} 33. Qxc6
{[%clk 0:02:22.4]} 33... Qe3 {[%clk 0:02:05.7]} 34. Qc2 {[%clk 0:02:21]} 34...
f5 {[%clk 0:02:04.7]} 35. a6 {[%clk 0:02:18.5]} 35... h5 {[%clk 0:02:05.9]} 36.
h4 {[%clk 0:02:18.1]} 36... g6 {[%clk 0:01:42.9]} 37. Qc7+ {[%clk 0:02:14.4]}
37... Kh8 {[%clk 0:01:42.9]} 38. Qd8+ {[%clk 0:02:12.1]} 38... Kg7 {[%clk
0:01:44.3]} 39. Qe7+ {[%clk 0:02:13.9]} 39... Kh6 {[%clk 0:01:45.7]} 40. Qf8+
{[%clk 0:02:14.8]} 40... Kh7 {[%clk 0:01:46.1]} 41. Qf7+ {[%clk 0:02:16]} 1-0

[Event "*** Titled Tuesday Blitz"]
[Site "Chess.com"]
[Date "2018.12.04"]
[Round "1"]
[White "GhostOfGreenval"]
[Black "Naruto-K"]
[Result "1-0"]
[WhiteElo "2841"]
[BlackElo "2439"]
[TimeControl "180+2"]
[EndTime "13:05:30 PST"]
[Termination "GhostOfGreenval won by resignation"]

1. e4 {[%clk 0:03:01.9]} 1... e6 {[%clk 0:03:00.6]} 2. d4 {[%clk 0:03:02.1]}
2... d5 {[%clk 0:03:00.8]} 3. Nc3 {[%clk 0:03:02.1]} 3... Bb4 {[%clk 0:03:00.8]}
4. e5 {[%clk 0:03:02]} 4... Ne7 {[%clk 0:03:00.7]} 5. a3 {[%clk 0:02:58.7]} 5...
Bxc3+ {[%clk 0:03:01.9]} 6. bxc3 {[%clk 0:03:00.6]} 6... b6 {[%clk 0:03:03.5]}
7. Qg4 {[%clk 0:02:55.8]} 7... Ng6 {[%clk 0:03:03.2]} 8. Bg5 {[%clk 0:02:47.4]}
8... Qd7 {[%clk 0:03:03.7]} 9. h4 {[%clk 0:02:45.2]} 9... h5 {[%clk 0:03:04.5]}
10. Qg3 {[%clk 0:02:43.5]} 10... Qa4 {[%clk 0:03:04.8]} 11. Bd3 {[%clk
0:02:41.5]} 11... Ba6 {[%clk 0:03:05.6]} 12. Ne2 {[%clk 0:02:24.4]} 12... Bxd3
{[%clk 0:03:03.8]} 13. cxd3 {[%clk 0:02:22.4]} 13... c5 {[%clk 0:03:04.9]} 14.
O-O {[%clk 0:02:20.1]} 14... Nc6 {[%clk 0:03:05.6]} 15. dxc5 {[%clk 0:02:21]}
15... bxc5 {[%clk 0:03:06.8]} 16. f4 {[%clk 0:02:13.3]} 16... Nge7 {[%clk
0:02:52.2]} 17. Qf2 {[%clk 0:01:52.3]} 17... Qa5 {[%clk 0:02:42.1]} 18. Bxe7
{[%clk 0:01:48.4]} 18... Nxe7 {[%clk 0:02:42.9]} 19. Rfc1 {[%clk 0:01:48.6]}
19... Nf5 {[%clk 0:02:43.1]} 20. Ng3 {[%clk 0:01:46.8]} 20... Nxh4 {[%clk
0:02:38.2]} 21. c4 {[%clk 0:01:42.3]} 21... d4 {[%clk 0:02:27.4]} 22. Ne4 {[%clk
0:01:43.1]} 22... Nf5 {[%clk 0:02:28.2]} 23. Rab1 {[%clk 0:01:40.4]} 23... a6
{[%clk 0:02:27.3]} 24. Rb7 {[%clk 0:01:37.5]} 24... O-O {[%clk 0:02:28.1]} 25.
Qf3 {[%clk 0:01:37.5]} 25... g6 {[%clk 0:02:24.7]} 26. g4 {[%clk 0:01:36.5]}
26... hxg4 {[%clk 0:02:25.6]} 27. Qh1 {[%clk 0:00:27.7]} 27... Kg7 {[%clk
0:02:22.5]} 28. Ng5 {[%clk 0:00:26.9]} 28... Rh8 {[%clk 0:02:23.3]} 29. Rxf7+
{[%clk 0:00:27.3]} 29... Kg8 {[%clk 0:02:23.9]} 30. Qxa8+ {[%clk 0:00:29.2]} 1-0